bitfinex/quotes_ETHUSD_20240916
["timestamp","ask_amount","ask_price","bid_price","bid_amount"]
[1726503477393,0.90716063,2293.0,2292.9,7.33675058]
[1726503479289,0.90810599,2293.1,2293.0,6.05889]
[1726503479597,1.36075564,2293.2,2293.0,6.2224998]
[1726503479901,0.90807898,2293.1,2293.0,7.2350595]
[1726503481261,1.36075564,2293.2,2293.0,6.2224998]
[1726503482363,0.90788728,2293.1,2293.0,6.2224998]
[1726503484054,1.36075564,2293.1,2293.0,0.1636098]
[1726503484491,1.36075564,2293.1,2292.9,1.6978]
[1726503484652,0.90776907,2293.0,2292.7,0.0383088]
[1726503484867,1.36075564,2292.8,2292.7,0.0383088]
[1726503486510,0.90733411,2292.8,2292.7,0.0383088]
[1726503487012,0.90733411,2292.8,2292.7,4.3999688]
[1726503487160,0.90733411,2292.8,2292.7,0.0383088]
[1726503488560,0.90733411,2292.9,2292.8,4.36147]
[1726503488756,0.90733411,2293.0,2292.9,4.36128]
[1726503489059,1.36075564,2293.1,2293.0,1.6978]
[1726503490012,1.36075564,2293.1,2293.0,6.05889]
[1726503490200,0.90750761,2293.1,2293.0,6.93299405]
[1726503490505,0.90750761,2293.1,2293.0,7.09671374]
[1726503490506,0.9076346,2293.1,2293.0,7.09671374]
[1726503490894,0.9076346,2293.1,2293.0,11.45780374]
[1726503491208,0.9076346,2293.2,2293.1,10.4196]
[1726503491409,1.36075564,2293.3,2293.2,10.41922]
[1726503491410,0.9076346,2293.3,2293.2,10.41922]
[1726503491611,0.4549559,2293.4,2293.3,10.41884]
[1726503492111,1.36075564,2293.6,2293.5,6.05794]
[1726503492112,0.9077685,2293.6,2293.5,6.05794]
[1726503492316,0.9077685,2293.6,2293.5,11.47623074]
[1726503492497,1.36075564,2293.7,2293.6,4.35995]
[1726503492498,0.9077685,2293.7,2293.6,4.35995]
[1726503492874,0.9077685,2293.7,2293.6,4.52313552]
[1726503494093,0.9077685,2293.7,2293.6,5.58124307]
[1726503495314,0.9077685,2293.7,2293.6,4.52313552]
[1726503496206,0.9077685,2293.7,2293.6,8.88308552]
[1726503496454,0.9077685,2293.8,2293.6,8.88308552]
[1726503496694,0.9077685,2293.8,2293.6,4.52313552]
[1726503497072,0.9077685,2293.7,2293.6,4.52313552]
[1726503498560,0.9077685,2293.7,2293.6,4.52313552]
[1726503499616,0.9077685,2293.7,2293.6,8.88308552]
[1726503499812,0.9077685,2293.7,2293.6,15.99892407]
[1726503500119,2.2673471,2294.0,2293.8,6.05737]
[1726503500120,0.9077685,2294.0,2293.8,6.05737]
[1726503500325,0.9077685,2294.0,2293.9,5.12709797]
[1726503500545,0.9077685,2294.0,2293.9,4.52134097]
[1726503501169,0.9077685,2294.0,2293.9,0.16198097]
[1726503501866,0.9077685,2294.0,2293.9,4.52136097]
[1726503502049,0.9077685,2294.1,2294.0,4.35919]
[1726503502215,0.9077685,2294.1,2294.0,9.7762151]
[1726503502417,0.9077685,2294.3,2294.2,10.41542]
[1726503502668,2.26680784,2294.6,2294.5,8.71648]
[1726503502669,0.9077685,2294.6,2294.5,8.71648]
[1726503502965,0.9077685,2294.9,2294.7,1.6978]
[1726503503130,0.9077685,2295.0,2294.9,8.71496]
[1726503503338,0.9077685,2295.1,2295.0,8.71458]
[1726503503556,0.9077685,2295.3,2295.1,4.3571]
[1726503503866,0.9077685,2295.3,2295.2,0.16126515]
[1726503504422,1.0177685,2295.4,2295.2,0.16126515]
[1726503504657,1.0177685,2295.4,2295.2,4.51812515]
[1726503504861,1.0177685,2295.4,2295.2,4.51816515]
[1726503505423,0.11,2295.4,2295.2,4.51816515]
[1726503506464,0.043096,2295.4,2295.2,0.16126515]
[1726503506645,0.9508645,2295.4,2295.2,0.16126515]
[1726503506853,0.9508645,2295.4,2295.0,4.35728]
[1726503507055,0.9508645,2295.4,2295.3,0.1612246]
[1726503507225,0.9508645,2295.4,2295.0,4.35728]
[1726503507423,0.9508645,2295.4,2295.3,0.1612246]
[1726503507424,0.043096,2295.4,2295.3,0.1612246]
[1726503507625,0.043096,2295.4,2295.0,5.2893028]
[1726503507849,4.399626,2295.4,2295.3,0.1612246]
[1726503508055,4.399626,2295.4,2294.8,0.605558]
[1726503508244,9.6640545,2295.4,2295.3,0.1612246]
[1726503508532,4.35684,2295.3,2294.8,0.605558]
[1726503509518,4.35684,2295.3,2294.9,0.16138685]
[1726503509766,4.35693,2295.2,2294.9,0.16138685]
[1726503510463,4.35693,2295.2,2294.9,1.27941133]
[1726503510848,4.35673,2295.3,2294.9,1.27941133]
[1726503511062,5.3744,2295.3,2294.9,0.16138685]
[1726503511431,3.0,2295.0,2294.9,0.16138685]
[1726503511584,3.0,2295.2,2294.8,4.35766]
[1726503511941,3.0,2295.2,2294.9,0.15977984]
[1726503511942,7.35691,2295.2,2294.9,0.15977984]
[1726503512247,7.35691,2295.2,2294.7,4.88078847]
[1726503512248,3.0,2295.0,2294.7,0.435792]
[1726503512447,3.0,2295.0,2294.6,4.35792]
[1726503512686,9.73113,2295.3,2294.8,4.35756]
[1726503512870,2.3744,2295.3,2294.9,1.6978]
[1726503513178,2.3744,2295.3,2294.9,6.05528]
[1726503513371,6.73115,2295.3,2294.9,2.303336]
[1726503513667,3.0,2295.2,2294.9,2.303336]
[1726503513862,7.35692,2295.2,2294.8,4.35756]
[1726503514058,7.35692,2295.2,2294.6,6.05575]
[1726503514257,4.35733,2295.0,2294.6,6.05575]
[1726503514478,4.35723,2295.1,2294.6,7.097153]
[1726503515055,4.35723,2295.1,2294.6,5.399353]
[1726503515272,4.35788,2294.7,2294.2,4.35871]
[1726503515570,6.73249,2294.8,2294.3,4.35852]
[1726503515770,6.73249,2294.8,2294.3,5.50042449]
[1726503515771,4.35787,2294.7,2294.3,5.50042449]
[1726503516206,4.35842,2294.5,2294.1,2.70181494]
[1726503516418,4.358,2294.7,2294.1,1.6978]
[1726503516615,4.358,2294.7,2294.2,4.35879]
[1726503516763,5.3747,2294.8,2294.3,0.605659]
[1726503517104,5.3747,2294.8,2294.4,4.35842]
[1726503517314,9.73237,2294.8,2294.4,4.35842]
[1726503517465,9.73237,2294.8,2294.3,0.605659]
[1726503517466,5.3747,2294.8,2294.3,0.605659]
[1726503517663,9.73248,2294.8,2294.3,0.605659]
[1726503518500,9.73248,2294.8,2294.3,0.69282006]
[1726503519068,5.3747,2294.8,2294.4,0.86321729]
[1726503519269,5.3747,2294.8,2294.4,5.22161729]
[1726503519467,2.3747,2294.8,2294.5,4.35823]
[1726503519664,7.35733,2295.0,2294.5,5.56189039]
[1726503519910,7.35733,2295.0,2294.5,5.47473498]
[1726503520119,3.0,2295.0,2294.7,4.35785]
[1726503520325,2.3267,2295.1,2294.6,6.14298615]
[1726503520326,4.35711,2295.1,2294.6,6.14298615]
[1726503520488,4.35687,2295.3,2294.8,0.14968289]
[1726503520810,8.71377,2295.3,2294.9,0.14950164]
[1726503521315,4.35685,2295.3,2294.9,0.14950164]
[1726503521516,4.35685,2295.3,2294.9,5.55224464]
[1726503521517,3.0,2295.3,2294.9,5.55224464]
[1726503521824,3.0,2295.3,2294.9,4.59411033]
[1726503522306,0.093096,2295.4,2295.0,6.05498]
[1726503522505,0.093096,2295.4,2295.1,1.05619516]
[1726503522728,0.093096,2295.4,2295.1,1.20556878]
[1726503523723,0.093096,2295.4,2295.1,0.14937362]
[1726503524032,4.449766,2295.4,2294.9,4.35737]
[1726503524200,4.449766,2295.4,2295.2,0.14891117]
[1726503524396,4.449766,2295.4,2294.9,4.35737]
[1726503524726,7.449766,2295.4,2295.3,0.14887061]
[1726503525022,7.449766,2295.4,2295.0,0.605517]
[1726503525023,4.449766,2295.4,2295.0,0.605517]
[1726503525418,4.449766,2295.4,2295.1,0.14895173]
[1726503525590,3.093096,2295.4,2295.1,0.14895173]
[1726503525927,7.449666,2295.4,2295.1,0.14895173]
[1726503527332,3.093096,2295.4,2295.1,0.14895173]
[1726503527642,7.449716,2295.4,2295.1,0.14895173]
[1726503528040,7.449716,2295.4,2294.9,4.35737]
[1726503528186,7.449716,2295.4,2295.2,0.14891117]
[1726503528187,3.093096,2295.4,2295.2,0.14891117]
[1726503528388,3.093096,2295.4,2295.0,4.35729]
[1726503528629,3.093096,2295.4,2295.3,0.14887061]
[1726503528813,3.093096,2295.4,2295.0,4.35729]
[1726503529017,3.093096,2295.4,2295.3,0.14840968]
[1726503529215,3.093096,2295.4,2295.0,4.35729]
[1726503529385,3.093096,2295.4,2295.3,0.14840968]
[1726503529589,3.093096,2295.4,2295.0,4.44442655]
[1726503529829,0.093096,2295.4,2295.3,0.14840968]
[1726503530121,0.093096,2295.4,2295.1,4.44415658]
[1726503530343,0.093096,2295.4,2295.3,0.14840968]
[1726503530545,0.093096,2295.4,2295.3,6.05452]
[1726503530748,0.093096,2295.4,2295.3,11.25221892]
[1726503531719,0.093096,2295.4,2295.3,11.16510168]
[1726503532315,0.093096,2295.4,2295.3,6.80838168]
[1726503534410,0.093096,2295.4,2295.3,0.75386168]
[1726503534607,0.093096,2295.4,2295.3,0.14840968]
[1726503535010,0.093096,2295.4,2295.3,4.50512968]
[1726503536511,0.093096,2295.4,2295.3,0.14840968]
[1726503537045,0.093096,2295.4,2295.3,0.14815977]
[1726503537791,0.093096,2295.4,2295.1,4.35709]
[1726503538162,0.093096,2295.4,2295.3,0.14815977]
[1726503538781,0.093096,2295.4,2295.1,4.35709]
[1726503539084,0.093096,2295.4,2295.2,0.14827842]
[1726503539293,4.35672,2295.3,2294.8,6.05536]
[1726503539579,4.35672,2295.3,2294.8,7.46982391]
[1726503539989,4.35672,2295.3,2294.8,10.12957391]
[1726503540483,4.35705,2295.2,2294.8,1.41446391]
[1726503540788,4.35705,2295.2,2294.4,3.0]
[1726503540789,4.35739,2295.0,2294.4,6.05611]
[1726503540969,4.3576,2294.9,2294.4,6.05611]
[1726503541281,4.35768,2294.8,2294.4,1.6978]
[1726503541527,4.35768,2294.8,2294.4,6.05622]
[1726503541641,5.2652585,2294.9,2294.4,7.097631]
[1726503541844,4.35769,2294.8,2294.4,4.35834]
[1726503542270,4.35769,2294.8,2294.2,6.05644]
[1726503542478,4.35769,2294.8,2294.4,4.35841]
[1726503542696,0.9077685,2294.9,2294.5,4.794041]
[1726503542870,0.9077685,2295.0,2294.7,4.35785]
[1726503543046,0.9077685,2295.0,2294.8,4.44479471]
[1726503543387,0.9077685,2295.2,2295.0,4.35724]
[1726503543597,0.9077685,2295.2,2294.9,4.3574]
[1726503543807,0.9077685,2295.2,2294.8,6.05541]
[1726503544086,0.9077685,2295.1,2294.8,2.303341]
[1726503544293,1.36075564,2295.2,2294.8,2.303341]
[1726503544294,0.9077685,2295.2,2294.9,4.35738]
[1726503545085,0.9077685,2295.2,2295.1,4.3571]
[1726503545310,1.36075564,2295.3,2295.1,6.49061]
[1726503545311,0.9077685,2295.3,2295.1,6.49061]
[1726503545506,0.9077685,2295.3,2295.1,6.57774158]
[1726503545708,0.9077685,2295.3,2295.1,6.57774166]
[1726503546124,0.9077685,2295.3,2295.2,5.45041117]
[1726503546269,0.9577685,2295.4,2295.2,5.45041117]
[1726503546804,0.05,2295.4,2295.3,4.35672]
[1726503547020,0.05,2295.4,2295.3,5.59433618]
[1726503547668,0.05,2295.4,2295.3,9.95105618]
[1726503548107,0.05,2295.4,2295.3,9.86393312]
[1726503548425,0.05,2295.4,2295.3,5.50721312]
[1726503548865,0.05,2295.4,2295.3,9.86393312]
[1726503549380,0.05,2295.4,2295.3,5.50721312]
[1726503549782,0.0883088,2295.5,2295.3,5.50721312]
[1726503549987,0.0883088,2295.5,2295.4,4.90725131]
[1726503550979,0.0883088,2295.5,2295.4,11.0486989]
[1726503551514,0.0883088,2295.5,2295.4,10.96158131]
[1726503554176,0.0883088,2295.5,2295.4,18.86811131]
[1726503554687,0.0883088,2295.5,2295.4,19.01572297]
[1726503556814,0.0883088,2295.5,2295.4,11.10919297]
[1726503557009,0.0883088,2295.5,2295.4,0.14761166]
[1726503557181,0.0883088,2295.5,2295.4,4.50414166]
[1726503559393,0.0883088,2295.5,2295.4,8.94778513]
[1726503560731,0.0883088,2295.5,2295.4,8.86067166]
[1726503563124,0.0883088,2295.5,2295.4,11.10847166]
[1726503563327,0.0883088,2295.5,2295.4,12.65499083]
[1726503563532,0.0883088,2295.5,2295.4,17.01152083]
[1726503564029,0.0883088,2295.5,2295.4,24.36805083]
[1726503566594,0.0383088,2296.2,2296.1,13.06563]
[1726503566802,0.0383088,2296.2,2296.1,25.46433203]
[1726503567037,0.0383088,2296.2,2296.1,28.46433203]
[1726503568450,0.0383088,2296.8,2296.1,9.78289203]
[1726503568630,0.0383088,2296.8,2296.7,22.22138214]
[1726503569000,0.0383088,2296.8,2296.7,22.36239691]
[1726503569201,0.0383088,2296.8,2296.7,25.0777876]
[1726503574009,0.0383088,2296.8,2296.7,29.4318576]
[1726503575204,0.0383088,2296.8,2296.7,25.0777876]
[1726503579429,0.0383088,2296.8,2296.7,21.16641546]
[1726503582050,0.0383088,2296.8,2296.7,7.21047546]
[1726503582254,0.0383088,2296.8,2296.7,4.49508477]
[1726503582663,0.0383088,2296.8,2296.7,8.84915477]
[1726503583005,0.0383088,2296.8,2296.7,4.49508477]
[1726503584006,6.6721888,2296.8,2296.7,0.14101477]
[1726503584289,6.6721888,2296.8,2296.1,11.81511]
[1726503584290,2.28,2296.6,2296.1,11.81511]
[1726503584491,2.28,2296.6,2296.1,4.35511]
[1726503584492,2.28,2296.5,2296.1,4.35511]
[1726503584803,2.28,2296.5,2296.1,5.226165]
[1726503584963,2.28,2296.4,2295.8,4.35577]
[1726503585150,6.84734,2296.3,2295.8,4.35577]
[1726503586001,2.4925,2296.3,2295.9,4.35555]
[1726503587299,6.84734,2296.3,2295.7,16.17164]
[1726503587595,6.84734,2296.3,2295.7,14.407146]
[1726503587798,6.84734,2296.3,2295.8,4.3557]
[1726503588255,4.35504,2296.2,2295.7,4.35578]
[1726503588577,4.35504,2296.2,2295.8,0.08710114]
[1726503588578,2.4996,2296.2,2295.8,0.08710114]
[1726503589186,2.4996,2296.2,2295.8,4.44285114]
[1726503589368,2.4996,2296.2,2295.8,0.08710114]
[1726503589563,6.85466,2296.2,2295.8,0.08710114]
[1726503590294,2.4996,2296.2,2295.9,4.35557]
[1726503590497,2.4996,2296.2,2296.0,0.08709828]
[1726503591184,2.4996,2296.2,2296.0,4.44245828]
[1726503591387,2.4996,2296.2,2296.0,0.08709828]
[1726503591592,2.4996,2296.2,2296.0,4.44248828]
[1726503592360,2.4996,2296.2,2295.9,8.71095]
[1726503592794,2.4996,2296.2,2295.9,8.71096]
[1726503593570,2.4996,2296.2,2295.9,4.35547]
[1726503593971,2.4996,2296.2,2296.1,4.35521]
[1726503595206,2.4996,2296.2,2296.0,4.35539]
[1726503596367,2.4996,2296.2,2296.0,4.3553]
[1726503597370,2.4996,2296.2,2296.1,4.35521]
[1726503597815,0.05,2296.5,2296.4,4.35464]
[1726503598263,0.05,2296.5,2296.4,4.44172289]
[1726503598465,0.05,2296.5,2296.4,0.08708289]
[1726503598665,0.05,2296.5,2296.4,4.44172289]
[1726503599479,0.05,2296.5,2296.4,5.37461821]
[1726503599897,0.05,2296.5,2296.4,0.14032492]
[1726503600114,0.05,2296.5,2296.1,4.35508]
[1726503600115,0.05,2296.5,2296.2,4.35499]
[1726503600406,0.05,2296.5,2295.5,8.70488214]
[1726503600407,2.3356,2296.4,2295.9,4.35545]
[1726503600773,6.69026,2296.4,2295.9,8.71092]
[1726503600973,2.2567,2296.3,2295.9,4.35545]
[1726503601304,2.2567,2296.3,2296.1,4.3552]
[1726503601511,2.2567,2296.3,2296.1,4.35509]
[1726503601669,2.2567,2296.3,2296.1,8.71021]
[1726503601872,2.2567,2296.3,2296.2,4.44211431]
[1726503602182,0.05,2296.5,2296.4,4.35464]
[1726503602566,0.05,2296.6,2296.5,8.7089]
[1726503602769,0.05,2296.6,2296.5,9.63479]
[1726503602976,0.05,2296.6,2296.5,18.45061214]
[1726503603209,0.05,2296.6,2296.5,14.53924]
[1726503603375,0.05,2296.6,2296.5,10.18479]
[1726503604488,0.05,2296.6,2296.5,4.35445]
[1726503604870,0.05,2296.6,2295.9,3.0]
[1726503604871,4.40437,2296.6,2295.8,9.1578]
[1726503605070,4.40437,2296.6,2296.0,4.35529]
[1726503605071,6.74727,2296.5,2296.0,4.35529]
[1726503605273,2.3928,2296.5,2296.3,4.3548]
[1726503605468,2.3928,2296.5,2295.8,10.10358]
[1726503605469,0.05,2296.6,2296.4,4.79012]
[1726503605673,0.05,2296.6,2296.4,4.35464]
[1726503605873,0.05,2296.6,2296.5,4.35445]
[1726503606742,2.3928,2296.7,2296.6,8.70852]
[1726503606743,0.05,2296.7,2296.6,8.70852]
[1726503606872,0.0883088,2296.8,2296.7,4.35407]
[1726503607074,0.0883088,2296.8,2296.7,4.44113898]
[1726503607309,2.3837088,2296.8,2296.4,4.35448]
[1726503609077,2.3837088,2296.8,2296.6,4.35426]
[1726503610618,2.3837088,2296.8,2296.7,4.35407]
[1726503612822,2.3837088,2296.8,2296.6,8.70828]
[1726503613248,2.3837088,2296.8,2296.7,4.35407]
[1726503614305,2.3837088,2296.8,2296.6,4.35414]
[1726503614506,2.3837088,2296.8,2296.7,0.13542933]
[1726503615431,2.3837088,2296.8,2296.4,4.35451]
[1726503615633,1.04116288,2296.7,2296.2,4.35488]
[1726503615934,2.3839,2296.4,2296.3,0.13559139]
[1726503616111,2.3839,2296.3,2296.0,7.46]
[1726503616310,3.29119449,2296.3,2295.9,4.35545]
[1726503616813,2.3693,2296.2,2295.7,9.01162]
[1726503616963,2.3693,2296.2,2295.8,4.35565]
[1726503617183,3.32659449,2296.2,2295.8,4.35565]
[1726503617466,2.4193,2296.2,2295.8,4.35565]
[1726503617620,3.32659449,2296.2,2295.8,4.35565]
[1726503618270,2.4181,2296.1,2295.5,11.81621]
[1726503618450,2.4181,2295.9,2295.5,4.35621]
[1726503618655,3.32539449,2295.9,2295.5,4.35621]
[1726503619322,3.32539449,2295.9,2295.6,0.08711226]
[1726503620067,2.4181,2295.9,2295.7,4.35596]
[1726503620356,3.32539449,2295.9,2295.6,4.35604]
[1726503620964,2.4181,2295.9,2295.6,4.35604]
[1726503621135,3.32539449,2295.9,2295.6,4.35604]
[1726503621562,3.32539449,2295.9,2295.8,4.35578]
[1726503621840,4.36719875,2295.9,2295.7,4.35596]
[1726503622049,3.32539449,2295.9,2295.6,4.35604]
[1726503622349,2.2986,2295.8,2295.4,8.71283]
[1726503622942,2.2986,2295.8,2295.4,8.71282]
[1726503623177,2.2986,2295.8,2295.5,4.35633]
[1726503624178,3.20589449,2295.8,2295.5,4.35633]
[1726503624689,2.2986,2295.8,2295.5,4.35633]
[1726503624905,2.2986,2295.8,2295.6,4.35612]
[1726503625055,2.2986,2295.8,2295.6,4.44323355]
[1726503626141,3.20589449,2295.8,2295.6,4.44323355]
[1726503626554,3.20589449,2295.8,2295.6,0.08711397]
[1726503626785,3.20589449,2295.8,2295.6,4.44316397]
[1726503627946,3.20589449,2295.8,2295.6,4.35605]
[1726503628154,3.20589449,2295.8,2295.5,4.35633]
[1726503628377,1.94745694,2295.7,2295.5,4.35633]
[1726503628956,1.94745694,2295.7,2295.6,4.35615]
[1726503629472,0.90729449,2295.8,2295.7,4.35596]
[1726503629855,1.94760679,2295.8,2295.7,4.49324974]
[1726503630795,0.90729449,2295.9,2295.7,4.49324974]
[1726503631092,0.90729449,2295.9,2295.8,4.80510497]
[1726503631293,0.90729449,2295.9,2295.8,4.35578]
[1726503631899,0.90729449,2295.9,2295.8,4.53850345]
[1726503632678,3.28589449,2295.9,2295.8,4.53850345]
[1726503632880,4.32661061,2295.9,2295.8,4.53850345]
[1726503633099,1.94801061,2295.9,2295.8,8.89428345]
[1726503633262,0.90729449,2295.9,2295.8,14.6894918]
[1726503633464,0.95729449,2296.2,2296.1,8.71042]
[1726503633800,0.95729449,2296.2,2296.1,10.5908159]
[1726503633801,0.05,2296.2,2296.1,10.5908159]
[1726503634097,0.05,2296.2,2296.1,8.8930159]
[1726503634282,0.05,2296.2,2296.1,10.59070292]
[1726503638372,3.28589449,2296.5,2296.3,4.35483]
[1726503638373,0.05,2296.4,2296.3,4.35483]
[1726503638900,0.05,2296.4,2296.3,4.53715407]
[1726503639270,0.05,2296.4,2296.3,0.18232407]
[1726503639271,1.99148097,2296.4,2296.3,0.18232407]
[1726503639472,0.95729449,2296.4,2296.2,8.70987]
[1726503639770,0.95729449,2296.4,2296.3,4.53715407]
[1726503640082,0.05,2296.4,2296.3,4.53715407]
[1726503640719,0.05,2296.4,2296.3,9.95095918]
[1726503640921,0.05,2296.4,2296.3,8.97907022]
[1726503641131,0.05,2296.4,2296.3,14.94461407]
[1726503641409,0.05,2296.5,2296.4,13.06392]
[1726503641830,0.94560329,2296.8,2296.4,13.06392]
[1726503641831,0.05,2296.7,2296.6,13.06278]
[1726503642116,0.05,2296.7,2296.6,26.58239147]
[1726503642271,0.05,2296.7,2296.6,29.87651935]
[1726503643304,0.05,2296.7,2296.6,25.52225935]
[1726503643531,0.05,2296.7,2296.6,29.87651935]
[1726503645027,0.05,2296.7,2296.6,25.52225935]
[1726503645321,0.05,2296.7,2296.6,29.87651935]
[1726503646023,0.05,2296.7,2296.6,25.52225935]
[1726503646802,0.05,2296.7,2296.6,21.05470788]
[1726503647014,0.05,2296.7,2296.6,19.35690788]
[1726503647322,0.05,2296.7,2296.6,12.00264788]
[1726503648297,0.05,2296.7,2296.6,12.55264788]
[1726503649024,0.05,2296.7,2296.6,9.44071658]
[1726503650221,0.05,2296.7,2296.6,8.89071658]
[1726503652221,0.05,2296.7,2296.6,17.71252805]
[1726503652553,0.05,2296.7,2296.6,19.41032805]
[1726503653270,0.05,2296.7,2296.6,9.44071658]
[1726503653569,0.05,2296.7,2296.6,8.89071658]
[1726503655125,0.05,2296.7,2296.6,4.53645658]
[1726503655364,0.05,2296.7,2296.6,0.18219658]
[1726503655863,2.3823,2296.7,2296.6,0.18219658]
[1726503656017,2.3823,2296.7,2296.6,4.53645658]
[1726503657423,2.3823,2296.7,2296.6,0.18219658]
[1726503657837,2.62436088,2296.7,2296.6,0.18219658]
[1726503658174,2.62436088,2296.7,2296.3,4.35475]
[1726503658390,6.97845088,2296.7,2296.6,0.17492151]
[1726503658677,2.2912,2296.5,2296.2,4.35489]
[1726503659044,2.2912,2296.5,2296.3,0.17512679]
[1726503659454,2.2912,2296.5,2296.2,4.35489]
[1726503659651,2.2912,2296.5,2296.4,0.17508429]
[1726503660268,2.2912,2296.5,2296.2,4.35489]
[1726503660572,2.2912,2296.5,2296.3,0.17526681]
[1726503660773,2.2912,2296.5,2296.2,4.35489]
[1726503661069,2.2912,2296.5,2296.4,0.17522431]
[1726503661269,2.2912,2296.5,2296.3,0.17526681]
[1726503661663,2.2912,2296.5,2296.2,4.35489]
[1726503661850,0.90729449,2296.6,2296.4,4.52986431]
[1726503662051,2.516,2296.7,2296.4,4.35464]
[1726503662052,0.05,2296.5,2296.4,4.35464]
[1726503662285,0.05,2296.5,2296.4,8.70928]
[1726503662486,0.05,2296.5,2296.4,9.7419096]
[1726503662786,0.05,2296.5,2296.3,4.35476]
[1726503662941,2.4714,2296.4,2296.2,4.35492]
[1726503663642,2.4714,2296.4,2296.1,4.3551]
[1726503663836,0.05,2296.3,2295.7,7.46]
[1726503664075,2.4282,2296.2,2295.9,4.35555]
[1726503664284,3.186709,2296.2,2295.6,4.35608]
[1726503664514,2.4986,2296.0,2295.8,4.35565]
[1726503664780,2.4986,2296.0,2295.6,4.35602]
[1726503665079,2.4986,2296.0,2295.7,4.35594]
[1726503665640,2.4986,2296.0,2295.4,11.81642]
[1726503665840,2.4086,2295.9,2295.6,4.35614]
[1726503666140,2.4086,2295.9,2295.6,8.71228]
[1726503666346,2.4086,2295.9,2295.6,4.35606]
[1726503667148,0.05,2295.8,2295.4,4.35641]
[1726503667382,0.05,2295.8,2295.5,4.35633]
[1726503667383,2.4086,2295.7,2295.5,4.35633]
[1726503667708,2.4586,2295.7,2295.5,4.35633]
[1726503668187,2.4586,2295.7,2295.3,4.35658]
[1726503668346,0.05,2295.6,2295.3,4.35658]
[1726503669271,0.05,2295.6,2295.3,8.71319]
[1726503669897,3.0,2295.5,2294.6,7.46]
[1726503670074,2.2927,2295.4,2294.9,4.35737]
[1726503670476,2.2927,2295.4,2295.1,4.35707]
[1726503670647,0.05,2295.3,2295.1,4.35707]
[1726503670842,0.05,2295.3,2295.1,4.35698]
[1726503671389,0.05,2295.3,2294.9,4.3573]
[1726503671683,0.05,2295.3,2294.8,1.6978]
[1726503671684,2.3929,2295.2,2294.8,4.35758]
[1726503672196,2.3929,2295.2,2294.9,4.35748]
[1726503672584,2.3929,2295.2,2294.9,4.35739]
[1726503673200,2.3929,2295.2,2294.9,4.35738]
[1726503673507,2.3929,2295.2,2295.0,4.35715]
[1726503674802,0.05,2295.3,2295.2,4.35691]
[1726503675158,0.05,2295.3,2295.2,9.44031392]
[1726503676103,0.05,2295.3,2295.2,8.89031392]
[1726503677464,0.05,2295.3,2295.2,4.53340392]
[1726503679110,2.4607,2295.3,2295.2,0.17649392]
[1726503679402,2.70677,2295.3,2295.2,0.17649392]
[1726503679609,2.4607,2295.3,2294.9,4.35735]
[1726503679912,2.4607,2295.3,2295.2,0.17720674]
[1726503680204,2.4607,2295.3,2295.2,0.17727683]
[1726503680407,2.4607,2295.3,2294.9,8.71474]
[1726503680408,2.4607,2295.3,2295.0,4.35729]
[1726503680562,2.4607,2295.3,2295.2,0.17727683]
[1726503680776,2.4607,2295.3,2294.9,8.71473]
[1726503680972,2.4607,2295.3,2295.2,0.17772071]
[1726503681178,2.4607,2295.3,2295.0,4.35728]
[1726503681412,2.4607,2295.3,2295.2,0.17772071]
[1726503681618,2.4607,2295.3,2295.0,4.35728]
[1726503681788,0.05,2295.2,2295.1,0.17776325]
[1726503681996,2.3344,2295.2,2294.8,4.35766]
[1726503682189,2.3344,2295.2,2294.9,0.17789509]
[1726503683296,2.3344,2295.2,2294.7,4.35772]
[1726503683504,2.3344,2295.2,2295.0,0.17785254]
[1726503683716,2.3344,2295.2,2294.8,4.35759]
[1726503684025,2.3344,2295.2,2294.6,11.81802]
[1726503684026,5.51171,2295.2,2294.6,11.81802]
[1726503684235,3.90729449,2295.6,2294.2,7.3891996]
[1726503684236,4.35733,2295.0,2294.7,0.17798021]
[1726503684525,6.77721,2294.9,2294.7,0.17798021]
[1726503684699,11.1348,2294.9,2294.4,4.35833]
[1726503684883,9.77721,2294.9,2294.8,0.17809344]
[1726503685514,4.35771,2294.8,2294.2,8.7477696]
[1726503685814,2.4569,2294.7,2294.3,4.3586]
[1726503686021,0.05,2294.6,2294.5,8.71648]
[1726503686511,0.05,2294.6,2294.5,9.26648]
[1726503687409,0.05,2294.6,2294.5,13.62472]
[1726503687593,0.05,2295.0,2294.9,4.35748]
[1726503687794,0.05,2295.3,2295.1,4.35699]
[1726503687990,0.05,2295.3,2295.2,5.228335]
[1726503688212,0.05,2295.3,2295.2,4.35691]
[1726503688417,0.05,2295.3,2295.0,8.71437]
[1726503688827,0.05,2295.3,2295.1,4.35704]
[1726503689252,0.05,2295.3,2295.2,8.80095055]
[1726503689548,0.05,2295.3,2295.2,8.71382]
[1726503689704,0.05,2295.3,2295.2,8.89200814]
[1726503691425,0.05,2295.5,2295.4,4.35653]
[1726503691608,0.05,2295.5,2295.4,4.53464082]
[1726503692643,0.05,2295.5,2295.4,0.17811082]
[1726503694941,0.05,2295.5,2295.4,4.53464082]
[1726503695117,0.05,2295.5,2295.4,5.4237649]
[1726503695631,0.05,2295.5,2295.4,1.0672349]
[1726503695840,0.05,2295.5,2295.4,0.17811082]
[1726503696551,2.4348,2295.5,2295.4,0.17811082]
[1726503696713,2.4348,2295.5,2295.1,4.35699]
[1726503697054,6.79115,2295.5,2295.2,0.17819591]
[1726503697250,7.470244,2295.5,2295.2,0.17819591]
[1726503697461,0.05,2295.4,2295.0,8.71435]
[1726503697645,0.05,2295.4,2295.3,0.17815336]
[1726503697956,6.77803,2295.3,2294.7,4.35786]
[1726503698157,0.05,2295.2,2294.7,4.35786]
[1726503698647,0.05,2295.2,2294.9,4.35741]
[1726503699473,0.05,2295.2,2294.8,4.35767]
[1726503701616,0.89823689,2295.2,2294.8,4.35767]
[1726503701812,0.89823689,2295.2,2294.5,7.46]